bitfinex-derivatives/quotes_BTCF0:USTF0_20241019
["timestamp","ask_amount","ask_price","bid_price","bid_amount"]
[1729303818559,0.03570836,68397.0,68395.0,0.02641763]
[1729303818759,0.03570836,68397.0,68392.0,0.3608]
[1729303819153,0.0001,68393.0,68392.0,0.433911]
[1729303822655,0.0001,68393.0,68392.0,0.46077482]
[1729303825569,0.0001,68393.0,68392.0,0.64421694]
[1729303827951,0.0001,68393.0,68392.0,0.74660315]
[1729303828354,0.0402691,68396.0,68395.0,0.073108]
[1729303828561,0.04019241,68398.0,68397.0,0.073106]
[1729303828762,0.04019241,68398.0,68397.0,0.25654812]
[1729303833563,0.04019241,68398.0,68397.0,0.073106]
[1729303835169,0.05327595,68405.0,68400.0,0.073103]
[1729303835360,0.05327595,68405.0,68400.0,0.433903]
[1729303840567,0.05327595,68405.0,68400.0,0.61595066]
[1729303841264,0.05327595,68405.0,68400.0,1.65455066]
[1729303841469,0.04838554,68409.0,68403.0,0.073099]
[1729303841668,0.04838554,68409.0,68406.0,0.3608]
[1729303841864,0.04838554,68409.0,68407.0,0.18204766]
[1729303842071,0.04838554,68409.0,68407.0,0.69370266]
[1729303842265,0.04653466,68410.0,68408.0,0.073094]
[1729303842565,0.04653466,68410.0,68409.0,0.25514066]
[1729303842768,0.04653466,68410.0,68409.0,0.28654066]
[1729303842965,0.04653466,68410.0,68409.0,0.88654066]
[1729303843375,0.06767033,68415.0,68410.0,0.073092]
[1729303843576,0.06767033,68415.0,68410.0,0.25404849]
[1729303845676,0.06767033,68415.0,68414.0,0.073088]
[1729303845880,0.06767033,68415.0,68414.0,0.60390337]
[1729303846071,0.06767033,68415.0,68414.0,0.51644259]
[1729303846271,0.06767033,68415.0,68414.0,0.60390082]
[1729303847477,0.06767033,68415.0,68414.0,0.51644259]
[1729303848674,0.06767033,68415.0,68414.0,0.433888]
[1729303849077,0.06767033,68415.0,68414.0,0.47759712]
[1729303849481,0.06767033,68415.0,68414.0,0.46025339]
[1729303850378,0.06767033,68415.0,68414.0,1.49877339]
[1729303853382,0.06767033,68415.0,68414.0,1.54245347]
[1729303853581,0.06767033,68415.0,68414.0,1.49877339]
[1729303855678,0.06767033,68415.0,68414.0,1.58102742]
[1729303856580,0.06767033,68415.0,68414.0,1.67907691]
[1729303857173,0.06767033,68415.0,68414.0,1.24055691]
[1729303857486,0.06767033,68415.0,68414.0,1.24046719]
[1729303858386,0.06767033,68415.0,68414.0,0.64046719]
[1729303862682,0.08004286,68419.0,68414.0,0.56737919]
[1729303862986,0.08004286,68419.0,68417.0,0.073084]
[1729303863188,0.08004286,68419.0,68417.0,0.26050187]
[1729303865487,0.08004286,68419.0,68417.0,0.26079932]
[1729303868391,0.11484493,68418.0,68417.0,0.26079932]
[1729303869282,0.11484493,68418.0,68417.0,0.3631691]
[1729303869788,0.11484493,68418.0,68417.0,0.7239691]
[1729303870381,0.11484493,68418.0,68417.0,0.73554706]
[1729303870880,0.11484493,68418.0,68417.0,0.44108807]
[1729303871276,0.11484493,68418.0,68417.0,0.59644194]
[1729303872384,0.11484493,68418.0,68417.0,0.52345107]
[1729303874893,0.11484493,68418.0,68417.0,0.5234155]
[1729303876182,0.11484493,68418.0,68417.0,0.59646296]
[1729303876383,0.11484493,68418.0,68417.0,0.5234155]
[1729303877787,0.11484493,68418.0,68417.0,0.7356169]
[1729303883689,0.11484493,68418.0,68417.0,0.3748169]
[1729303883891,0.11484493,68418.0,68417.0,0.7356169]
[1729303885790,0.11484493,68418.0,68417.0,0.5234155]
[1729303887292,0.11484493,68418.0,68417.0,0.1626155]
[1729303887497,0.11484493,68418.0,68417.0,0.5234155]
[1729303889096,0.11484493,68418.0,68417.0,0.5234365]
[1729303892911,0.11484493,68418.0,68417.0,0.73557465]
[1729303893904,0.11484493,68418.0,68417.0,0.73557862]
[1729303896006,0.11484493,68418.0,68417.0,0.37477862]
[1729303896204,0.11484493,68418.0,68417.0,0.73557862]
[1729303897502,0.11484493,68418.0,68417.0,0.37477862]
[1729303897804,0.11484493,68418.0,68417.0,0.73557862]
[1729303900311,0.08284493,68418.0,68417.0,0.73557862]
[1729303904207,0.15592793,68418.0,68417.0,0.73557862]
[1729303906815,0.15592793,68418.0,68417.0,0.8525223]
[1729303907619,0.15592793,68418.0,68417.0,0.73557862]
[1729303908017,0.15592793,68418.0,68417.0,0.59658459]
[1729303912724,0.15592793,68418.0,68417.0,0.51411594]
[1729303912930,0.15592793,68418.0,68417.0,0.59657054]
[1729303914723,0.15592793,68418.0,68417.0,0.23577054]
[1729303914922,0.15592793,68418.0,68417.0,0.59657054]
[1729303915929,0.15592793,68418.0,68417.0,0.5965618]
[1729303916131,0.15592793,68418.0,68417.0,0.74048667]
[1729303917735,0.15592793,68418.0,68417.0,0.62637983]
[1729303919725,0.15592793,68418.0,68417.0,0.26557983]
[1729303919926,0.15592793,68418.0,68417.0,0.62637982]
[1729303920127,0.08284493,68418.0,68417.0,0.62637982]
[1729303922930,0.08284493,68418.0,68417.0,0.62180959]
[1729303923132,0.08284493,68418.0,68417.0,0.4456583]
[1729303923536,0.15592793,68418.0,68417.0,0.4456583]
[1729303923936,0.08284493,68418.0,68417.0,0.4456583]
[1729303924133,0.08284493,68418.0,68417.0,0.51867884]
[1729303924636,0.08284493,68418.0,68417.0,0.44565831]
[1729303924935,0.08284493,68418.0,68417.0,0.44108807]
[1729303925336,0.08284493,68418.0,68417.0,0.5141086]
[1729303926732,0.08284493,68418.0,68417.0,0.44108807]
[1729303926928,0.08284493,68418.0,68417.0,0.59651414]
[1729303927143,0.08284493,68418.0,68417.0,0.5141086]
[1729303927437,0.08284493,68418.0,68417.0,0.44108807]
[1729303930437,0.08284493,68418.0,68417.0,0.5141086]
[1729303930638,0.08284493,68418.0,68417.0,0.59661529]
[1729303930836,0.08284493,68418.0,68417.0,0.5141086]
[1729303931041,0.08284493,68418.0,68417.0,0.62195117]
[1729303931737,0.08284493,68418.0,68417.0,0.73613683]
[1729303932447,0.08284493,68418.0,68417.0,0.85308051]
[1729303933849,0.08284493,68418.0,68417.0,0.73613683]
[1729303935047,0.08284493,68418.0,68417.0,0.73564382]
[1729303935548,0.08284493,68418.0,68417.0,0.62164614]
[1729303935745,0.08284493,68418.0,68417.0,0.26084614]
[1729303935946,0.08284493,68418.0,68417.0,0.62164614]
[1729303938153,0.08284493,68418.0,68417.0,0.52346089]
[1729303939745,0.08284493,68418.0,68417.0,0.52363801]
[1729303943044,0.08284493,68418.0,68417.0,0.52820807]
[1729303944356,0.08284493,68418.0,68417.0,0.52818982]
[1729303945647,0.08284493,68418.0,68417.0,0.52361976]
[1729303945848,0.08284493,68418.0,68417.0,0.52818982]
[1729303946152,0.08284493,68418.0,68417.0,0.85299192]
[1729303946352,0.08284493,68418.0,68417.0,0.85756198]
[1729303948650,0.08284493,68418.0,68417.0,0.74073353]
[1729303949155,0.08284493,68418.0,68417.0,0.74066853]
[1729303950558,0.08284493,68418.0,68417.0,0.37986853]
[1729303950758,0.08284493,68418.0,68417.0,0.74066853]
[1729303958463,0.08284493,68418.0,68417.0,0.85750171]
[1729303958964,0.08284493,68418.0,68417.0,0.74066853]
[1729303960362,0.08284493,68418.0,68417.0,0.85744139]
[1729303961166,0.08284493,68418.0,68417.0,0.52358804]
[1729303961361,0.08284493,68418.0,68417.0,0.52815778]
[1729303963266,0.08284493,68418.0,68417.0,0.52799025]
[1729303965665,0.08284493,68418.0,68417.0,0.62604299]
[1729303965865,0.0371487,68418.0,68417.0,0.62604299]
[1729303966778,0.0371487,68418.0,68417.0,0.52799025]
[1729303967672,0.0371487,68418.0,68417.0,0.88879025]
[1729303967870,0.0371487,68418.0,68417.0,0.88868555]
[1729303968281,0.0371487,68418.0,68417.0,1.22995499]
[1729303968967,0.0371487,68418.0,68417.0,1.10041954]
[1729303969172,0.0371487,68418.0,68417.0,1.0958498]
[1729303970376,0.0371487,68418.0,68417.0,1.21252769]
[1729303971772,0.0371487,68418.0,68417.0,0.49092769]
[1729303971980,0.0371487,68418.0,68417.0,1.21252769]
[1729303972373,0.0371487,68418.0,68417.0,1.0958498]
[1729303972575,0.0371487,68418.0,68417.0,0.9156028]
[1729303972778,0.0371487,68418.0,68417.0,1.09571272]
[1729303973478,0.0371487,68418.0,68417.0,0.50360338]
[1729303973678,0.0371487,68418.0,68417.0,1.22520338]
[1729303975071,0.0371487,68418.0,68417.0,1.09571272]
[1729303975583,0.0371487,68418.0,68417.0,1.2252066]
[1729303975775,0.0371487,68418.0,68417.0,1.09571272]
[1729303975985,0.0371487,68418.0,68417.0,0.50360887]
[1729303976282,0.0371487,68418.0,68417.0,1.09571272]
[1729303977276,0.0371487,68418.0,68417.0,0.80188807]
[1729303977476,0.0371487,68418.0,68417.0,1.09572187]
[1729303977883,0.0371487,68418.0,68417.0,0.37412187]
[1729303978077,0.0371487,68418.0,68417.0,1.09572187]
[1729303978278,0.0371487,68418.0,68417.0,1.21241759]
[1729303978477,0.0371487,68418.0,68417.0,1.09572187]
[1729303978781,0.0371487,68418.0,68417.0,0.37412187]
[1729303978976,0.0371487,68418.0,68417.0,1.09572187]
[1729303979377,0.0371487,68418.0,68417.0,1.21242793]
[1729303980881,0.0371487,68418.0,68417.0,1.13029298]
[1729303981180,0.0371487,68418.0,68417.0,1.21247788]
[1729303982787,0.0371487,68418.0,68417.0,1.09577182]
[1729303983476,0.0371487,68418.0,68417.0,1.2252703]
[1729303983680,0.0371487,68418.0,68417.0,1.09577182]
[1729303985291,0.0371487,68418.0,68417.0,0.98203422]
[1729303985475,0.0371487,68418.0,68417.0,1.22531326]
[1729303986088,0.0371487,68418.0,68417.0,1.09577873]
[1729303986489,0.0371487,68418.0,68417.0,1.22533911]
[1729303989188,0.03060341,68418.0,68417.0,1.21813504]
[1729303989579,0.03060341,68418.0,68417.0,1.22542369]
[1729303991287,0.06415815,68420.0,68417.0,1.44419312]
[1729303991489,0.06415815,68420.0,68418.0,0.42345104]
[1729303991691,0.06415815,68420.0,68419.0,0.42345104]
[1729303991895,0.06415815,68420.0,68419.0,0.6416939]
[1729303992597,0.06415815,68420.0,68419.0,0.7147759]
[1729303993388,0.06415815,68420.0,68419.0,0.49653304]
[1729303994386,0.06415815,68420.0,68419.0,0.62792925]
[1729303994702,0.06415815,68420.0,68419.0,0.62753195]
[1729303995090,0.06415815,68420.0,68419.0,0.49613574]
[1729303995291,0.06415815,68420.0,68419.0,0.62753195]
[1729303996393,0.06415815,68420.0,68419.0,1.34913195]
[1729303999197,0.06415815,68420.0,68419.0,1.21773574]
[1729303999404,0.06415815,68420.0,68419.0,1.21780538]
[1729304000693,0.06415815,68420.0,68419.0,1.21779673]
[1729304000893,0.06415815,68420.0,68419.0,1.08837534]
[1729304001094,0.05715815,68420.0,68419.0,1.56805368]
[1729304001599,0.04468913,68421.0,68419.0,1.37077054]
[1729304001800,0.04468913,68421.0,68420.0,0.64224094]
[1729304002202,0.01346913,68421.0,68420.0,0.6420897]
[1729304002402,0.01346913,68421.0,68420.0,0.49618336]
[1729304003007,0.01346913,68421.0,68420.0,0.62749938]
[1729304003603,0.09580129,68422.0,68421.0,0.07308]
[1729304003801,0.09580129,68422.0,68421.0,0.49618236]
[1729304003997,0.09580129,68422.0,68421.0,0.36677334]
[1729304005602,5.6e-07,68423.0,68422.0,0.073079]
[1729304005907,5.6e-07,68423.0,68422.0,0.58615231]
[1729304006204,5.6e-07,68423.0,68422.0,0.71497596]
[1729304006403,0.07830419,68424.0,68422.0,0.71497596]
[1729304006404,0.07130475,68424.0,68423.0,0.073078]
[1729304006613,0.07130475,68424.0,68423.0,0.50285452]
[1729304006799,0.07130475,68424.0,68423.0,0.72223449]
[1729304007313,0.07130475,68424.0,68423.0,0.85355051]
[1729304008106,0.07130475,68424.0,68423.0,0.72223449]
[1729304008501,0.07130475,68424.0,68423.0,0.85351294]
[1729304008702,0.0564773,68424.0,68423.0,0.85351294]
[1729304009209,0.0564773,68424.0,68423.0,0.74854649]
[1729304009409,0.0564773,68424.0,68423.0,0.91418586]
[1729304012808,0.0564773,68424.0,68423.0,1.045432]
[1729304013009,0.0564773,68424.0,68423.0,0.91418586]
[1729304013206,0.0245873,68424.0,68423.0,0.91418586]
[1729304013411,0.0245873,68424.0,68423.0,0.91264393]
[1729304014013,0.0630119,68425.0,68424.0,0.073077]
[1729304014207,0.0630119,68425.0,68424.0,0.49401066]
[1729304014716,0.0450109,68425.0,68424.0,0.49401066]
[1729304016313,0.0450109,68425.0,68424.0,0.36527917]
[1729304016510,0.0450109,68425.0,68424.0,0.4937164]
[1729304017912,0.0450109,68425.0,68424.0,1.2153164]
[1729304019114,0.0450109,68425.0,68424.0,1.08687917]
[1729304020216,0.0450109,68425.0,68424.0,0.36527917]
[1729304020517,0.0380109,68425.0,68424.0,1.08687917]
[1729304020719,0.06506894,68426.0,68424.0,1.02096822]
[1729304020919,0.05320984,68426.0,68425.0,0.36527817]
[1729304021115,0.05320984,68426.0,68425.0,0.37262259]
[1729304021906,0.05320984,68426.0,68425.0,0.4892241]
[1729304022518,0.05320984,68426.0,68425.0,1.2108241]
[1729304025425,0.05320984,68426.0,68425.0,1.09422259]
[1729304025915,0.05320984,68426.0,68425.0,1.22265613]
[1729304031633,8.4e-07,68426.0,68425.0,1.3905813]
[1729304031814,0.04498087,68428.0,68426.0,0.073075]
[1729304032015,0.06116871,68430.0,68429.0,0.073072]
[1729304032231,7.1e-07,68430.0,68429.0,0.50040239]
[1729304032524,7.1e-07,68430.0,68429.0,1.01866292]
[1729304033028,0.1351887,68431.0,68430.0,0.073071]
[1729304033219,0.1351887,68431.0,68430.0,0.49749248]
[1729304033625,0.1351887,68431.0,68430.0,0.62877858]
[1729304034029,0.1351887,68431.0,68430.0,0.49749248]
[1729304035516,0.1351887,68431.0,68430.0,0.62877858]
[1729304035720,0.1351887,68431.0,68430.0,0.49749248]
[1729304036115,0.1351887,68431.0,68430.0,0.49689651]
[1729304036327,0.1351887,68431.0,68430.0,0.5226676]
[1729304037226,0.1351887,68431.0,68430.0,0.10341068]
[1729304037631,0.1351887,68431.0,68430.0,0.522983]
[1729304038227,0.1351887,68431.0,68430.0,0.66885906]
[1729304038431,0.1351887,68431.0,68430.0,0.24928674]
[1729304038632,0.1351887,68431.0,68430.0,0.5224493]
[1729304038825,0.1351887,68431.0,68430.0,0.66832843]
[1729304039225,0.1351887,68431.0,68430.0,0.66375984]
[1729304040333,0.1351887,68431.0,68430.0,0.51788071]
[1729304042532,0.1351887,68431.0,68430.0,0.64918523]
[1729304043338,0.1351887,68431.0,68430.0,0.51788071]
[1729304044336,0.1351887,68431.0,68430.0,0.64918523]
[1729304044642,0.1351887,68431.0,68430.0,0.64919119]
[1729304045942,0.0705887,68431.0,68430.0,0.64919119]
[1729304046443,0.0705887,68431.0,68430.0,0.51798229]
[1729304046940,0.0705887,68431.0,68430.0,0.64929461]
[1729304047830,0.0705887,68431.0,68430.0,0.51798229]
[1729304048744,0.0705887,68431.0,68430.0,0.64929461]
[1729304048942,0.0705887,68431.0,68430.0,0.51798229]
[1729304049544,0.0705887,68431.0,68430.0,1.23958229]
[1729304050539,0.0705887,68431.0,68430.0,1.11137067]
[1729304050739,0.0705887,68431.0,68430.0,0.9018207]
[1729304051050,0.0705887,68431.0,68430.0,1.11144264]
[1729304054046,0.0705887,68431.0,68430.0,1.10096383]
[1729304054348,0.0705887,68431.0,68430.0,1.21378716]
[1729304054544,0.0705887,68431.0,68430.0,1.11164421]
[1729304057046,0.0705887,68431.0,68430.0,1.21380502]
[1729304057242,0.0705887,68431.0,68430.0,0.49220502]
[1729304057447,0.0705887,68431.0,68430.0,1.21380502]
[1729304057642,0.0705887,68431.0,68430.0,1.11164421]
[1729304058753,0.0705887,68431.0,68430.0,1.37152706]
[1729304058944,0.0705887,68431.0,68430.0,1.24016502]
[1729304063746,0.0705887,68431.0,68430.0,1.37155881]
[1729304065653,0.0705887,68431.0,68430.0,0.99882088]
[1729304068156,0.0705887,68431.0,68430.0,0.27722088]
[1729304068351,0.0705887,68431.0,68430.0,0.99882088]
[1729304068557,0.0705887,68431.0,68430.0,0.27722088]
[1729304068746,0.08105489,68432.0,68431.0,0.073069]
[1729304068947,0.08105489,68432.0,68431.0,0.36111374]
[1729304069163,0.08105489,68432.0,68431.0,0.74478483]
[1729304069358,0.08105489,68432.0,68431.0,0.8571899]
[1729304069359,0.00745089,68432.0,68431.0,0.8571899]
[1729304069556,0.00745089,68432.0,68431.0,0.85711609]
[1729304069754,0.00745089,68432.0,68431.0,0.85702726]
[1729304069960,8.9e-07,68432.0,68431.0,0.75483394]
[1729304070458,8.9e-07,68432.0,68431.0,0.85697246]
[1729304071760,8.9e-07,68432.0,68431.0,0.74455196]
[1729304073651,8.9e-07,68432.0,68431.0,1.02862789]
[1729304074058,8.9e-07,68432.0,68431.0,0.88274876]
[1729304074868,8.9e-07,68432.0,68431.0,1.03403714]
[1729304075264,8.9e-07,68432.0,68431.0,0.88274876]
[1729304078969,8.9e-07,68432.0,68431.0,0.88221941]
[1729304080757,8.9e-07,68432.0,68431.0,0.75435452]
[1729304083562,8.9e-07,68432.0,68431.0,0.75395404]
[1729304083970,8.9e-07,68432.0,68431.0,0.85602747]
[1729304084963,8.9e-07,68432.0,68431.0,0.75395404]
[1729304085268,8.9e-07,68432.0,68431.0,0.8560313]
[1729304085474,8.9e-07,68432.0,68431.0,0.75395404]
[1729304087871,8.9e-07,68432.0,68431.0,1.03312248]
[1729304088373,8.9e-07,68432.0,68431.0,1.03359855]
[1729304089372,8.9e-07,68432.0,68431.0,1.19426189]
[1729304089572,8.9e-07,68432.0,68431.0,1.20796646]
[1729304089772,8.9e-07,68432.0,68431.0,1.0429929]
[1729304089973,8.9e-07,68432.0,68431.0,0.88232956]
[1729304090479,0.08824801,68433.0,68432.0,0.073068]
[1729304090667,0.08824801,68433.0,68432.0,0.62245426]
[1729304090866,0.08824801,68433.0,68432.0,1.01099297]
[1729304091070,0.08824801,68433.0,68432.0,0.87972355]
[1729304094983,0.06429584,68433.0,68432.0,1.01099297]
[1729304095186,0.06429584,68433.0,68432.0,0.87972355]
[1729304095871,0.06429584,68433.0,68432.0,0.63950597]
[1729304098690,0.06429584,68433.0,68432.0,0.63967423]
[1729304100374,0.06429584,68433.0,68432.0,0.75206155]
[1729304101088,0.06429584,68433.0,68432.0,0.63959021]
[1729304102991,0.06429584,68433.0,68432.0,1.03141911]
[1729304105493,0.06429584,68433.0,68432.0,1.0451235]
[1729304106494,0.06429584,68433.0,68432.0,1.03141911]
[1729304106792,0.06429584,68433.0,68432.0,1.75301911]
[1729304110192,0.06429584,68433.0,68432.0,1.91362569]
[1729304110390,0.06429584,68433.0,68432.0,1.75301911]
[1729304111192,0.06429584,68433.0,68432.0,1.60161886]
[1729304115390,0.06429584,68433.0,68432.0,1.75288909]
[1729304115590,0.12739584,68433.0,68432.0,1.5433023]
[1729304115790,0.12739584,68433.0,68432.0,1.38272273]
[1729304116293,0.12739584,68433.0,68432.0,1.51410273]
[1729304116996,0.12739584,68433.0,68432.0,1.38272273]
[1729304118103,0.12739584,68433.0,68432.0,1.14229408]
[1729304118311,0.12739584,68433.0,68432.0,1.25459985]
[1729304119391,0.12739584,68433.0,68432.0,1.25443786]
[1729304121000,0.10556736,68433.0,68432.0,1.25443786]
[1729304121192,0.07546736,68433.0,68432.0,1.47372639]
[1729304122102,0.07546736,68433.0,68432.0,1.3614426]
[1729304123901,0.07546736,68433.0,68432.0,1.36131444]
[1729304126206,0.07546736,68433.0,68432.0,1.6010913]
[1729304128498,0.07546736,68433.0,68432.0,1.60096646]
[1729304130205,0.07546736,68433.0,68432.0,1.38167793]
[1729304130903,0.07546736,68433.0,68432.0,1.52753907]
[1729304131402,0.07546736,68433.0,68432.0,1.38167793]
[1729304132297,0.07546736,68433.0,68432.0,1.25400861]
[1729304134097,0.07546736,68433.0,68432.0,1.08436603]
[1729304139412,0.07546736,68433.0,68432.0,1.21231852]
[1729304139814,0.07546736,68433.0,68432.0,0.49071852]
[1729304140012,0.07546736,68433.0,68432.0,1.21231852]
[1729304146213,0.07546736,68433.0,68432.0,0.49071852]
[1729304146418,0.07546736,68433.0,68432.0,1.21231852]
[1729304147217,0.07546736,68433.0,68432.0,1.21341512]
[1729304147419,0.07546736,68433.0,68432.0,1.08532374]
[1729304147819,0.07546736,68433.0,68432.0,1.21349083]
[1729304148926,0.07546736,68433.0,68432.0,0.49189083]
[1729304149235,0.07546736,68433.0,68432.0,1.21349083]
[1729304149729,0.07546736,68433.0,68432.0,0.49189083]
[1729304150238,0.07546736,68433.0,68432.0,1.21349083]
[1729304155846,0.07546736,68433.0,68432.0,1.08532374]
[1729304158146,0.07546736,68433.0,68432.0,1.18743391]
[1729304158336,0.07546736,68433.0,68432.0,0.46583391]
[1729304158645,0.07546736,68433.0,68432.0,1.18743391]
[1729304158842,0.07546736,68433.0,68432.0,1.0093294]
[1729304159043,0.07546736,68433.0,68432.0,1.10626884]
[1729304159237,0.07546736,68433.0,68432.0,1.18759648]
[1729304159433,0.07546736,68433.0,68432.0,0.46599648]
[1729304159838,0.07546736,68433.0,68432.0,1.00933282]
[1729304160038,0.07546736,68433.0,68432.0,1.18760531]
[1729304161049,0.07546736,68433.0,68432.0,0.89677817]
[1729304162042,0.07546736,68433.0,68432.0,0.17517817]
[1729304162342,0.07546736,68433.0,68432.0,0.794668]
[1729304165045,0.07546736,68433.0,68432.0,0.073068]
[1729304165247,0.07546736,68433.0,68432.0,0.794668]
[1729304166035,0.07546736,68433.0,68432.0,1.21370142]
[1729304167344,0.07546736,68433.0,68432.0,0.49210142]
[1729304167543,0.07546736,68433.0,68432.0,1.21370142]
[1729304168149,0.07546736,68433.0,68432.0,0.49210142]
[1729304168342,0.07546736,68433.0,68432.0,1.21370142]
[1729304172043,0.07546736,68433.0,68432.0,0.49210142]
[1729304172247,0.07546736,68433.0,68432.0,1.21370142]
[1729304172648,0.07546736,68433.0,68432.0,0.49210142]
[1729304172840,0.07546736,68433.0,68432.0,1.21370142]
[1729304173039,0.07546736,68433.0,68432.0,1.36562553]
[1729304173344,0.07546736,68433.0,68432.0,1.52607303]
[1729304173850,0.07546736,68433.0,68432.0,1.36562553]
[1729304174048,0.07546736,68433.0,68432.0,1.52606792]
[1729304174355,0.07546736,68433.0,68432.0,1.37414381]
[1729304174556,0.07546736,68433.0,68432.0,1.52567872]
[1729304175451,0.07546736,68433.0,68432.0,1.36523633]
[1729304175649,0.07546736,68433.0,68432.0,1.21370142]
[1729304175846,0.07546736,68433.0,68432.0,0.53908924]
[1729304175847,0.67546736,68433.0,68432.0,0.53908924]
[1729304176047,1.03626736,68433.0,68422.0,0.3608]
[1729304176249,0.43626736,68433.0,68432.0,0.08747836]
[1729304176455,1.03626736,68433.0,68431.0,0.00742667]
[1729304176757,1.03626736,68433.0,68423.0,0.073078]
[1729304176758,0.43626736,68433.0,68423.0,0.073078]
[1729304176943,0.0001,68432.0,68423.0,0.00744713]
[1729304177254,0.0001,68432.0,68425.0,0.073076]
[1729304177453,0.0001,68432.0,68427.0,0.073073]
[1729304177651,0.0001,68432.0,68429.0,0.073071]
[1729304178255,0.4384,68431.0,68429.0,0.073071]
[1729304178649,0.4384,68430.0,68429.0,0.073071]
[1729304178951,0.0001,68432.0,68431.0,0.073069]
[1729304179460,0.4385,68432.0,68431.0,0.073069]
[1729304181456,1.0385,68432.0,68431.0,0.073069]
[1729304182353,0.4385,68432.0,68431.0,0.073069]
[1729304183260,0.4385,68432.0,68431.0,0.09910856]
[1729304183459,1.0385,68432.0,68431.0,0.09910856]
[1729304185660,0.4385,68432.0,68431.0,0.09910856]
[1729304185956,1.0385,68432.0,68431.0,0.09910856]
[1729304190754,0.4385,68432.0,68431.0,0.09910856]
[1729304190954,0.4385,68432.0,68431.0,0.17927338]
[1729304192262,0.0001,68432.0,68431.0,0.17927338]
[1729304193656,0.6001,68432.0,68431.0,0.17927338]
[1729304197157,1.0385,68432.0,68431.0,0.17927338]
[1729304202967,1.0385,68432.0,68431.0,0.17941839]
[1729304203167,0.6001,68432.0,68431.0,0.26673779]
[1729304203667,0.6001,68432.0,68431.0,0.17941839]
[1729304204064,0.0001,68432.0,68431.0,0.26673779]
[1729304204263,0.6001,68432.0,68431.0,0.27528685]
[1729304207173,0.6001,68432.0,68431.0,0.37739535]
[1729304207374,0.0001,68432.0,68431.0,0.37739535]
[1729304207571,0.0001,68432.0,68431.0,0.37772598]
[1729304208174,0.0001,68432.0,68431.0,0.48916133]
[1729304208472,0.0001,68432.0,68431.0,0.37772598]
[1729304209178,0.0001,68432.0,68431.0,0.27561748]
[1729304223972,0.0001,68432.0,68431.0,0.27555179]
[1729304226481,0.0001,68432.0,68431.0,0.37766029]
[1729304226681,0.0001,68432.0,68431.0,0.48904474]
[1729304226877,0.0001,68432.0,68431.0,0.37766029]
[1729304227589,0.0001,68432.0,68431.0,0.27555179]
[1729304229475,0.0001,68432.0,68431.0,0.19521878]
[1729304229680,0.0001,68432.0,68431.0,0.27585075]
[1729304230582,0.3609,68432.0,68431.0,0.27585075]
[1729304230787,0.3609,68432.0,68431.0,0.27577489]
[1729304232178,0.0001,68432.0,68431.0,0.27577489]
[1729304232578,0.0001,68432.0,68431.0,0.37788339]
[1729304232776,0.0001,68432.0,68431.0,0.38729946]
[1729304233080,0.0001,68432.0,68431.0,0.48930749]
[1729304234785,0.0001,68432.0,68431.0,0.37788339]
[1729304234984,0.0001,68432.0,68431.0,0.48924954]
[1729304235383,0.0001,68432.0,68431.0,0.27577489]
[1729304238284,0.0001,68432.0,68431.0,0.37788339]
[1729304238691,0.0001,68432.0,68431.0,0.27577489]
[1729304239287,0.0001,68432.0,68431.0,0.37788339]
[1729304239489,0.0001,68432.0,68431.0,0.27577489]
[1729304249803,0.0001,68432.0,68424.0,0.00723968]
[1729304249996,0.0001,68432.0,68424.0,0.073076]
[1729304249997,0.433876,68426.0,68424.0,0.073076]
[1729304250300,0.433876,68426.0,68424.0,0.073077]
[1729304250598,0.433876,68426.0,68425.0,0.073076]
[1729304251101,0.3608,68426.0,68425.0,0.073076]
[1729304252597,0.3608,68426.0,68425.0,0.137976]
[1729304252801,0.3608,68426.0,68425.0,0.169976]
[1729304256404,0.0001,68432.0,68431.0,0.073069]
[1729304259007,0.0001,68432.0,68431.0,0.433869]
[1729304259505,0.0001,68432.0,68431.0,0.53591503]
[1729304259911,0.0001,68432.0,68431.0,0.52793641]
[1729304261909,0.0001,68432.0,68431.0,0.52797354]
[1729304262211,0.0001,68432.0,68431.0,0.55391265]
[1729304264902,0.0001,68432.0,68431.0,0.63296142]
[1729304271210,0.0001,68432.0,68431.0,0.63295637]
[1729304273017,0.0001,68432.0,68431.0,0.84410622]
[1729304273213,0.0611,68453.0,68431.0,1.4874978]
[1729304273518,0.3934,68452.0,68439.0,0.433861]
[1729304273718,0.3934,68452.0,68439.0,0.60700926]
[1729304275713,0.3934,68452.0,68439.0,0.60601449]
[1729304276312,0.3934,68452.0,68439.0,0.51239955]
[1729304279324,0.3934,68452.0,68439.0,0.53819784]
[1729304280422,0.3934,68452.0,68445.0,0.073055]
[1729304281516,0.3934,68452.0,68443.0,0.0001]
[1729304281714,0.3934,68452.0,68451.0,0.073048]
[1729304282022,0.3935,68452.0,68451.0,0.073048]
[1729304283217,0.3935,68452.0,68451.0,0.15154234]
[1729304286721,0.39549969,68452.0,68451.0,0.17806586]
[1729304287526,0.39549969,68452.0,68451.0,0.27132217]
[1729304288319,0.03469969,68452.0,68451.0,0.17777532]
[1729304288618,0.00209969,68452.0,68451.0,0.17777532]
[1729304292926,0.00209969,68452.0,68451.0,0.17765876]
[1729304295135,0.00209969,68452.0,68451.0,0.26497388]
[1729304295441,0.00209969,68452.0,68451.0,0.17765876]
[1729304297436,0.00209969,68452.0,68451.0,0.27120841]
[1729304298234,0.00209969,68452.0,68451.0,0.15774926]
[1729304301037,0.00209969,68452.0,68451.0,0.09957152]
[1729304306450,0.00209969,68452.0,68451.0,0.27168834]
[1729304308548,0.00209969,68452.0,68451.0,0.38053079]
[1729304308751,0.00561482,68454.0,68453.0,0.073046]
[1729304308949,0.00561482,68454.0,68453.0,0.35410527]
[1729304309547,0.00561482,68454.0,68453.0,0.36124118]
[1729304310356,0.0093672,68455.0,68454.0,0.073045]
[1729304310357,1e-08,68455.0,68454.0,0.073045]
[1729304310559,1e-08,68455.0,68454.0,0.35410427]
[1729304310765,1e-08,68455.0,68454.0,1.17350953]
[1729304311057,1e-08,68455.0,68454.0,1.29020091]
[1729304311256,1e-08,68455.0,68454.0,1.28921569]
[1729304311564,1e-08,68455.0,68454.0,1.17252431]
[1729304313756,0.00492524,68456.0,68454.0,0.49947931]
[1729304313957,0.00492524,68456.0,68455.0,0.34648017]
[1729304314266,0.00492524,68456.0,68455.0,0.46519017]
[1729304315357,0.01452205,68458.0,68457.0,0.073042]
[1729304315556,0.01452205,68458.0,68457.0,0.24476172]
[1729304315753,0.01452205,68458.0,68457.0,0.24497463]
[1729304320959,0.01452205,68458.0,68457.0,0.57098105]
[1729304321354,0.01452205,68458.0,68457.0,0.36928103]
[1729304324969,0.01452205,68458.0,68457.0,0.36926668]
[1729304325965,0.01452205,68458.0,68457.0,0.73006668]
[1729304328572,0.01452205,68458.0,68457.0,0.93258096]
[1729304329572,0.01452205,68458.0,68457.0,0.8391]
[1729304329769,0.01452205,68458.0,68457.0,0.93280557]
[1729304331075,0.01452205,68458.0,68457.0,1.78878171]
[1729304331975,0.01452205,68458.0,68457.0,1.68696732]
[1729304333475,0.01452205,68458.0,68457.0,1.08696732]